bitfinex/quotes_SOLUSD_20250919
["timestamp","ask_amount","ask_price","bid_price","bid_amount"]
[1758274944079,35.60998314,243.31,243.3,2.14518705]
[1758274944498,35.70998314,243.31,243.3,2.14518705]
[1758274944707,35.60998314,243.31,243.3,2.14518705]
[1758274945219,35.70998314,243.31,243.3,2.14518705]
[1758274946403,35.60998314,243.31,243.3,2.14518705]
[1758274947218,26.0,243.28,243.25,0.7]
[1758274947384,57.5,243.28,243.26,0.7]
[1758274947881,57.5,243.28,243.27,0.7]
[1758274948306,57.5,243.28,243.25,0.7]
[1758274948511,57.5,243.28,243.26,0.7]
[1758274948820,4.11065893,243.27,243.26,0.7]
[1758274953407,4.11065893,243.27,243.25,0.7]
[1758274955318,14.38730627,243.27,243.23,2.14632166]
[1758274955501,14.38730627,243.27,243.23,2.84632166]
[1758274955702,31.5,243.26,243.23,2.84632166]
[1758274956024,31.5,243.26,243.24,0.7]
[1758274956228,31.5,243.26,243.23,2.84632166]
[1758274956825,4.11099691,243.25,243.23,2.84632166]
[1758274958408,4.11099691,243.25,243.23,2.14632166]
[1758274958903,4.11099691,243.25,243.23,2.84632166]
[1758274959315,4.11099691,243.25,243.23,2.14632166]
[1758274959517,4.11099691,243.25,243.24,0.7]
[1758274963121,31.5,243.26,243.24,0.7]
[1758274963719,31.5,243.26,243.25,0.7]
[1758274965162,35.61082792,243.26,243.25,0.7]
[1758274967151,35.61082792,243.26,243.23,2.14632166]
[1758274967356,35.61082792,243.26,243.24,0.7]
[1758274968266,45.98789772,243.26,243.23,2.14632166]
[1758274968444,45.98789772,243.26,243.21,0.8]
[1758274975745,31.5,243.25,243.21,0.78]
[1758274975953,31.6,243.25,243.21,0.1]
[1758274976256,31.5,243.25,243.21,0.1]
[1758274976446,31.6,243.25,243.21,0.1]
[1758274977244,14.38908073,243.24,243.21,0.1]
[1758274977555,36.7,243.23,243.21,0.1]
[1758274978342,4.11150398,243.22,243.21,0.1]
[1758274981869,4.21150398,243.22,243.21,0.1]
[1758274983864,136.21150398,243.22,243.21,0.1]
[1758274986244,26.0,243.19,243.18,0.2]
[1758274986451,57.5,243.19,243.18,0.2]
[1758274986650,71.19559401,243.19,243.18,0.2]
[1758274986854,73.94492805,243.19,243.18,0.2]
[1758274987256,42.44492805,243.19,243.18,0.2]
[1758274987479,73.94492805,243.19,243.18,0.2]
[1758274988047,13.59559401,243.15,243.14,1e-08]
[1758274988378,51.95761569,243.15,243.14,1e-08]
[1758274988678,39.59559401,243.13,243.12,1e-08]
[1758274988884,73.84492805,243.13,243.12,1e-08]
[1758274989178,73.94492805,243.13,243.12,1e-08]
[1758274990151,79.70570585,243.13,243.12,1e-08]
[1758274990784,114.45770924,243.13,243.12,1e-08]
[1758274991948,26.0,243.09,243.05,0.86]
[1758274992173,61.61387197,243.08,243.05,0.2]
[1758274992363,26.0,243.06,243.05,0.2]
[1758274992565,57.5,243.06,243.05,0.2]
[1758274992874,69.16714251,243.06,243.05,0.2]
[1758274993279,73.28135299,243.06,243.05,0.86]
[1758274994351,73.28135299,243.06,243.05,0.2]
[1758274994769,83.56687919,243.06,243.01,0.76]
[1758274995083,26.0,243.03,243.02,0.66]
[1758274995374,61.61471834,243.03,243.02,0.66]
[1758274995577,72.93038085,243.03,243.02,0.66]
[1758274997871,41.43038085,243.03,243.02,0.66]
[1758274998078,42.81566251,243.03,243.02,0.66]
[1758274998255,10.59566251,243.03,243.02,4.77488766]
[1758275000875,10.59566251,243.03,243.02,0.66]
[1758275001867,10.59566251,243.03,243.02,4.77488766]
[1758275002576,10.59566251,243.03,243.02,0.66]
[1758275003093,10.59566251,243.03,243.02,4.77488766]
[1758275003490,10.59566251,243.03,243.02,0.66]
[1758275008082,14.71038085,243.03,243.02,0.66]
[1758275008465,14.71038085,243.03,243.01,0.1]
[1758275008665,46.21038085,243.03,243.01,0.1]
[1758275008980,13.78377647,243.02,243.01,0.1]
[1758275010193,13.06377647,243.02,243.01,0.1]
[1758275011470,13.06377647,243.02,243.01,0.78]
[1758275011789,8.94888881,243.02,243.01,0.78]
[1758275012089,44.58377647,243.02,243.01,0.78]
[1758275012685,44.58377647,243.02,243.01,0.1]
[1758275013788,13.06377647,243.02,243.01,0.1]
[1758275014174,44.58377647,243.02,243.01,0.1]
[1758275020714,40.46888881,243.02,243.01,0.78]
[1758275020874,8.94888881,243.02,243.01,0.78]
[1758275021473,8.94888881,243.02,243.01,5.17938013]
[1758275026596,8.94888881,243.02,243.01,0.78]
[1758275026773,8.94888881,243.02,243.01,5.17938013]
[1758275026976,8.94888881,243.02,243.01,1.06432314]
[1758275027186,8.94888881,243.02,243.01,0.78]
[1758275028179,8.94888881,243.02,243.01,5.17938013]
[1758275029595,8.94888881,243.02,243.01,1.06432314]
[1758275031299,8.94888881,243.02,243.01,5.17938013]
[1758275032194,8.94888881,243.02,243.01,0.1]
[1758275032588,8.94888881,243.02,243.01,0.78]
[1758275037511,9.61888881,243.02,243.01,0.1]
[1758275037886,13.73377647,243.02,243.01,0.1]
[1758275038184,13.06377647,243.02,243.01,0.1]
[1758275039207,13.73377647,243.02,243.01,0.1]
[1758275039411,19.03377647,243.02,243.01,0.1]
[1758275043394,50.53377647,243.02,243.01,0.1]
[1758275044514,76.53377647,243.02,243.01,0.1]
[1758275045421,50.53377647,243.02,243.01,0.1]
[1758275046094,59.29688776,243.02,243.01,0.1]
[1758275046715,72.89248177,243.02,243.01,0.1]
[1758275048194,72.89248177,243.02,243.01,1e-08]
[1758275049029,74.54111649,243.02,243.01,1e-08]
[1758275049320,74.54111649,243.02,242.99,0.2]
[1758275049321,46.73084988,243.0,242.99,1e-08]
[1758275049492,82.34607621,243.0,242.99,1e-08]
[1758275049697,102.88128347,243.0,242.99,1e-08]
[1758275050123,104.52998614,243.0,242.99,1e-08]
[1758275050294,102.88128347,243.0,242.99,1e-08]
[1758275051125,104.52998614,243.0,242.99,1e-08]
[1758275053615,71.38128347,243.0,242.99,1e-08]
[1758275053811,31.11568946,243.0,242.99,0.70000001]
[1758275054008,62.61568946,243.0,242.99,1e-08]
[1758275054524,76.90128347,243.0,242.99,1e-08]
[1758275056724,26.0,242.97,242.96,1e-08]
[1758275056909,57.52,242.97,242.96,1e-08]
[1758275057118,76.63097869,242.97,242.96,1e-08]
[1758275057728,80.74671314,242.97,242.96,1e-08]
[1758275058326,80.07671314,242.97,242.96,1e-08]
[1758275058507,48.55671314,242.97,242.96,1e-08]
[1758275058710,80.07671314,242.97,242.96,1e-08]
[1758275058903,48.55671314,242.97,242.96,1e-08]
[1758275059105,62.15230715,242.97,242.96,1e-08]
[1758275059329,93.69230715,242.97,242.96,1e-08]
[1758275059821,48.55671314,242.97,242.96,1e-08]
[1758275060123,80.09671314,242.97,242.96,0.70000001]
[1758275060308,80.09671314,242.97,242.96,1e-08]
[1758275061504,48.55671314,242.97,242.96,0.70000001]
[1758275061709,80.09671314,242.97,242.96,0.70000001]
[1758275065835,80.09671314,242.97,242.96,1e-08]
[1758275067535,93.69230715,242.97,242.96,1e-08]
[1758275067732,94.40230715,242.97,242.96,1e-08]
[1758275068135,93.67230715,242.97,242.96,1e-08]
[1758275068437,94.38230715,242.97,242.96,1e-08]
[1758275069240,96.03107778,242.97,242.96,1e-08]
[1758275069613,26.0,242.82,242.81,0.1]
[1758275069846,26.0,242.78,242.77,0.2]
[1758275070014,57.98,242.78,242.77,0.2]
[1758275070209,72.25559401,242.78,242.77,0.2]
[1758275070441,108.36325709,242.78,242.77,0.2]
[1758275070618,107.70325709,242.78,242.77,0.2]
[1758275070815,75.70325709,242.78,242.74,0.1]
[1758275071032,26.0,242.76,242.75,0.68]
[1758275071233,26.0,242.75,242.74,0.1]
[1758275071543,36.03965183,242.76,242.74,0.1]
[1758275071718,75.77085183,242.75,242.74,0.78]
[1758275071915,75.75085183,242.75,242.74,0.1]
[1758275072118,43.75085183,242.75,242.74,0.1]
[1758275072339,69.75085183,242.75,242.74,0.1]
[1758275072530,43.75085183,242.75,242.74,0.78]
[1758275083850,43.75085183,242.75,242.74,5.18395731]
[1758275084650,43.75085183,242.75,242.74,10.36791462]
[1758275085841,43.75085183,242.75,242.74,5.18395731]
[1758275088228,43.75085183,242.75,242.74,17.55381609]
[1758275089428,43.75085183,242.75,242.74,31.1494101]
[1758275089836,132.0,242.88,242.76,0.28432314]
[1758275090038,163.98,242.88,242.78,0.28432314]
[1758275090349,132.0,242.88,242.79,0.68]
[1758275090647,164.02,242.88,242.8,0.28432314]
[1758275090858,168.13728214,242.88,242.81,0.68]
[1758275091353,168.13728214,242.88,242.82,4.11827691]
[1758275091557,164.02,242.88,242.82,4.79827691]
[1758275091733,0.68,242.87,242.79,12.36730908]
[1758275092051,32.68,242.86,242.79,17.16607899]
[1758275092234,58.0,242.85,242.79,4.79876991]
[1758275092634,2.7,242.84,242.79,4.79876991]
[1758275093550,2.7,242.84,242.79,0.68]
[1758275093952,2.7,242.84,242.78,0.28432314]
[1758275094258,2.7,242.84,242.8,0.68]
[1758275095252,2.7,242.84,242.79,4.118732]
[1758275095447,2.7,242.84,242.79,4.808732]
[1758275095757,132.0,242.88,242.8,0.69]
[1758275096454,132.0,242.88,242.81,0.28432314]
[1758275096635,132.0,242.88,242.82,0.69]
[1758275097444,132.0,242.88,242.83,4.11810731]
[1758275097631,132.0,242.88,242.84,0.69]
[1758275097834,1.4,242.86,242.83,4.11810731]
[1758275098036,1.4,242.86,242.85,0.69]
[1758275099449,1.4,242.86,242.85,4.80776816]
[1758275100377,1.4,242.86,242.85,5.0920913]
[1758275100681,15.38074317,242.92,242.86,0.28432314]
[1758275100861,132.0,242.95,242.87,0.69]
[1758275101550,132.0,242.95,242.89,0.28432314]
[1758275101764,132.0,242.95,242.89,0.97432314]
[1758275102157,132.0,242.95,242.89,0.28432314]
[1758275102377,0.76,242.99,242.9,0.69]
[1758275103748,4.87546215,242.99,242.91,4.11675106]
[1758275103948,4.87546215,242.99,242.92,0.69]
[1758275105045,26.0,242.96,242.9,12.36170344]
[1758275105356,32.68,242.95,242.86,4.11759861]
[1758275105555,0.66,242.94,242.86,4.11759861]
[1758275105761,0.66,242.94,242.87,0.69]
[1758275105946,0.66,242.94,242.86,4.11759861]
[1758275106146,0.66,242.93,242.86,4.11759861]
[1758275106546,4.77644255,242.93,242.86,4.11759861]
[1758275106754,4.77644255,242.93,242.85,0.69]
[1758275106960,26.66,242.92,242.83,32.02]
[1758275107274,0.66,242.91,242.83,32.71]
[1758275107467,0.66,242.91,242.83,0.69]
[1758275107668,1.3,242.9,242.83,0.69]
[1758275107872,1.3,242.9,242.83,4.80802323]
[1758275109074,5.41693471,242.9,242.81,49.19407366]
[1758275109278,0.66,242.89,242.81,4.80829389]
[1758275109663,0.66,242.89,242.82,0.69]
[1758275110068,27.3,242.9,242.83,0.28432314]
[1758275110278,1.3,242.9,242.84,0.69]
[1758275110995,4.11815952,242.98,242.86,0.28432314]
[1758275111292,0.1,242.99,242.88,0.28432314]
[1758275111584,0.1,242.99,242.9,13.59559401]
[1758275111791,0.1,242.99,242.91,0.69]
[1758275111990,0.1,242.99,242.92,0.28432314]
[1758275112166,0.1,242.99,242.93,4.11641213]
[1758275112369,0.1,242.99,242.93,4.80641213]
[1758275112575,0.1,242.99,242.94,0.69]
[1758275112776,0.7,242.97,242.95,0.69]
[1758275112986,0.7,242.97,242.93,4.11641213]
[1758275113161,0.7,242.97,242.94,0.69]
[1758275113374,0.1,242.99,242.95,0.69]
[1758275113679,0.1,242.99,242.93,14.40744246]
[1758275113680,0.1,242.99,242.96,0.69]
[1758275114391,0.1,242.99,242.97,0.69]
[1758275114808,0.1,242.99,242.96,14.40565766]
[1758275115103,0.1,242.99,242.98,0.69]
[1758275115300,0.1,242.99,242.93,4.11641213]
[1758275115470,0.1,242.99,242.93,4.80641213]
[1758275115665,0.1,242.99,242.92,4.11656626]
[1758275115867,26.66,242.98,242.96,4.11441563]
[1758275116563,26.66,242.98,242.93,4.80640559]
[1758275116564,26.0,242.98,242.93,4.80640559]
[1758275116778,26.0,242.98,242.94,0.69]
[1758275117471,26.0,242.98,242.93,4.11640559]
[1758275117676,0.66,242.97,242.91,4.80660095]
[1758275117869,0.7,242.96,242.91,4.80660095]
[1758275118185,0.7,242.96,242.91,0.69]
[1758275118379,0.7,242.96,242.92,0.69]
[1758275119274,0.7,242.96,242.93,0.69]
[1758275121302,0.7,242.96,242.94,0.69]
[1758275121783,0.7,242.96,242.91,0.69]
[1758275121991,0.7,242.96,242.92,0.69]
[1758275122294,0.7,242.96,242.93,0.69]
[1758275123109,0.7,242.96,242.94,4.11624269]
[1758275123280,0.7,242.96,242.95,0.69]
[1758275123674,0.1,242.99,242.95,0.97432314]
[1758275124190,0.1,242.99,242.96,0.69]
[1758275124577,0.1,242.99,242.95,1.93227864]
[1758275124578,0.1,242.99,242.95,1.6479555]
[1758275124785,0.66,242.98,242.92,0.69]
[1758275124981,0.66,242.98,242.91,4.11659087]
[1758275125191,0.66,242.98,242.89,0.69]
[1758275125192,4.11573445,242.97,242.9,4.11692054]
[1758275125499,0.66,242.98,242.9,4.78692054]
[1758275125705,4.77561554,242.98,242.91,12.36119409]
[1758275126501,4.77561554,242.98,242.9,4.78692054]
[1758275126688,4.77561554,242.98,242.89,0.14216157]
[1758275126887,4.77561554,242.98,242.9,0.67]
[1758275128203,4.77561554,242.98,242.89,0.28432314]
[1758275128607,4.77561554,242.98,242.9,4.78692054]
[1758275130310,0.1,242.99,242.91,0.95432314]
[1758275130611,0.1,242.99,242.92,0.67]
[1758275132302,0.1,242.99,242.93,4.11641213]
[1758275132607,0.1,242.99,242.94,0.67]
[1758275132794,0.1,242.99,242.95,0.67]
[1758275133206,0.1,242.99,242.96,0.67]
[1758275134506,0.1,242.99,242.98,0.28432314]
[1758275134900,0.1,242.99,242.98,0.95432314]
[1758275135791,0.1,242.99,242.98,32.99432314]
[1758275136393,0.1,242.99,242.98,37.1098882]
[1758275137896,0.1,242.99,242.98,50.70548221]
[1758275138101,0.1,242.99,242.98,5.0698882]
[1758275138305,0.1,242.99,242.97,0.28432314]
[1758275138503,0.1,242.99,242.96,0.67]
[1758275138711,0.1,242.99,242.96,36.84588265]
[1758275139299,0.1,242.99,242.97,0.67]
[1758275140213,0.1,242.99,242.98,0.67]
[1758275140404,0.1,242.99,242.98,4.78556506]
[1758275140605,0.1,242.99,242.98,5.0698882]
[1758275146822,0.1,242.99,242.98,36.4198882]
[1758275147000,0.1,242.99,242.98,4.3998882]
[1758275147308,0.1,242.99,242.98,36.4198882]
[1758275149229,0.1,242.99,242.98,37.0898882]
[1758275150313,0.1,242.99,242.98,4.3998882]
[1758275150521,0.1,242.99,242.98,36.4198882]
[1758275151923,0.1,242.99,242.98,4.3998882]
[1758275152130,0.1,242.99,242.98,36.4198882]
[1758275152621,0.1,242.99,242.98,37.0898882]
[1758275153707,0.1,242.99,242.98,4.3998882]
[1758275153925,0.1,242.99,242.98,36.3998882]
[1758275154124,0.1,242.99,242.98,37.0698882]
[1758275157707,0.1,242.99,242.98,50.66548221]
[1758275166346,0.1,242.99,242.98,18.66548221]
[1758275166652,0.1,242.99,242.98,36.3198882]
[1758275169346,0.1,242.99,242.96,4.11577193]
[1758275169654,0.66,242.98,242.96,4.11577193]
[1758275169945,0.66,242.98,242.96,36.03577193]
[1758275170346,0.66,242.98,242.96,31.92]
[1758275171231,0.66,242.98,242.96,36.03584903]
[1758275173353,0.66,242.98,242.96,36.01584903]
[1758275173936,0.1,242.99,242.96,31.9]
[1758275174140,0.76,242.99,242.96,31.9]
[1758275174337,0.76,242.99,242.94,4.40056168]
[1758275174338,0.66,242.98,242.94,4.40056168]
[1758275174535,0.1,242.99,242.95,31.9]
[1758275174752,0.66,242.97,242.94,31.88]
[1758275175338,4.21541045,242.99,242.91,4.40102669]
[1758275175543,0.66,242.96,242.92,31.88]
[1758275176251,0.66,242.96,242.91,4.40102669]
[1758275176435,0.66,242.96,242.92,31.88]
[1758275178252,4.11600627,242.96,242.9,2.85824954]
[1758275178431,0.66,242.95,242.9,34.02824954]
[1758275178632,0.66,242.94,242.9,2.14824954]
[1758275179060,0.66,242.93,242.9,2.14824954]
[1758275179554,0.66,242.92,242.9,2.14824954]
[1758275179868,0.66,242.94,242.9,2.14824954]
[1758275180242,10.28975963,242.96,242.9,2.14824954]
[1758275180467,0.66,242.93,242.9,2.14824954]
[1758275180665,0.66,242.92,242.9,2.14824954]
[1758275180959,0.66,242.91,242.9,2.14824954]
[1758275182470,4.11692054,242.9,242.8,36.7084579]
[1758275182642,0.66,242.89,242.8,38.85825661]
[1758275182970,0.66,242.89,242.81,0.28432314]
[1758275183180,0.66,242.89,242.8,2.85979871]
[1758275183343,26.0,242.87,242.77,0.71]
[1758275183543,0.66,242.86,242.77,0.71]
[1758275183845,0.66,242.86,242.77,2.86004424]
[1758275184050,0.66,242.85,242.77,6.97913956]
[1758275184262,4.11776816,242.85,242.77,6.97913956]
[1758275184472,0.66,242.84,242.77,2.15004424]
[1758275185295,0.67,242.83,242.77,2.15004424]
[1758275186278,0.67,242.83,242.77,6.2691586]
[1758275186791,4.78812935,242.83,242.77,6.2691586]
[1758275187662,4.11776816,242.85,242.78,0.71]
[1758275187869,0.67,242.84,242.78,0.71]
[1758275188758,4.11810731,242.83,242.78,0.71]
[1758275188965,0.67,242.84,242.78,4.82884092]
[1758275189164,2.11660003,242.88,242.79,0.99432314]
[1758275189387,2.11660003,242.88,242.8,0.71]
[1758275189599,17.1970254,242.88,242.8,0.71]
[1758275190310,26.0,242.85,242.77,2.86004424]
[1758275190610,0.67,242.87,242.78,0.71]
[1758275190981,4.11746484,242.87,242.79,4.11878578]
[1758275191186,158.67,242.89,242.79,4.11878578]
[1758275191187,194.70721792,242.89,242.8,0.71]
[1758275191607,26.0,242.86,242.8,0.71]
[1758275192402,26.0,242.86,242.8,0.99432314]
[1758275192719,26.0,242.86,242.8,0.71]
[1758275193031,30.11760185,242.86,242.8,4.82860048]
[1758275193224,26.0,242.86,242.8,4.82860048]
[1758275193899,30.11762118,242.86,242.8,0.71]
[1758275196834,26.0,242.86,242.8,4.82861416]
[1758275197119,132.0,242.89,242.81,0.99432314]
[1758275197307,132.0,242.89,242.82,0.71]
[1758275197505,132.0,242.89,242.83,4.11810731]
[1758275197694,136.11709424,242.89,242.83,4.11810731]
[1758275199109,132.0,242.89,242.84,0.71]
[1758275199314,132.0,242.89,242.85,0.71]
[1758275199699,4.11660003,242.91,242.85,0.71]
[1758275200929,4.11660003,242.91,242.87,0.28432314]
[1758275201131,4.11660003,242.91,242.88,0.71]
[1758275201307,4.11660003,242.91,242.89,0.71]
[1758275201621,4.11660003,242.91,242.9,0.71]
[1758275202794,4.11660003,242.91,242.9,5.11124368]
[1758275205701,4.78660003,242.91,242.87,4.11742907]
[1758275205925,4.78660003,242.91,242.86,16.47980691]
[1758275206310,4.78660003,242.91,242.86,4.11759407]
[1758275207526,4.78660003,242.91,242.86,0.71]
[1758275207731,4.11660003,242.91,242.87,0.71]
[1758275207931,4.11660003,242.91,242.84,25.98648915]
[1758275208226,4.11660003,242.91,242.85,0.71]
[1758275209231,4.11660003,242.91,242.86,4.11759861]
[1758275209612,4.11660003,242.91,242.86,4.82759861]
[1758275209824,4.11660003,242.91,242.87,0.71]
[1758275210025,4.11660003,242.91,242.86,14.41159515]
[1758275210330,4.11660003,242.91,242.88,0.71]
[1758275210507,0.67,242.94,242.88,0.71]
[1758275210708,31.9,242.96,242.88,0.71]
[1758275211208,36.68591572,242.96,242.89,4.11709004]
[1758275211408,0.67,242.95,242.89,4.11709004]
[1758275212220,4.78608583,242.95,242.89,4.11709004]
[1758275212421,4.11608583,242.95,242.87,8.51869363]
[1758275212616,0.67,242.94,242.87,8.51869363]
[1758275213023,0.67,242.94,242.87,4.40160359]
[1758275213213,0.67,242.94,242.87,16.76534486]
[1758275213416,4.78633928,242.94,242.87,17.47534486]
[1758275215517,4.78633928,242.94,242.87,17.46534486]
[1758275216410,4.78633928,242.94,242.87,5.10160359]
[1758275216717,4.11607773,242.95,242.88,0.65]
[1758275216922,4.79607773,242.95,242.88,0.65]
[1758275217643,4.79607773,242.95,242.85,4.11764498]
[1758275217815,0.68,242.94,242.85,4.76764498]
[1758275218149,0.68,242.93,242.85,4.76764498]
[1758275218438,0.68,242.92,242.85,4.76764498]
[1758275218636,0.68,242.91,242.85,0.65]
[1758275218844,0.68,242.91,242.84,0.28432314]
[1758275218845,0.68,242.91,242.83,12.36476043]
[1758275219020,0.68,242.9,242.81,0.65]
[1758275219218,0.68,242.9,242.82,0.93432314]
[1758275219422,0.68,242.9,242.83,0.65]
[1758275219729,4.11709004,242.89,242.83,4.76810609]
[1758275219935,0.68,242.88,242.81,12.36577977]
[1758275220120,0.68,242.87,242.8,2.14931363]
[1758275220734,0.68,242.87,242.79,4.76878036]
[1758275220934,0.68,242.86,242.79,0.65]
[1758275221522,0.68,242.86,242.77,2.15008328]
[1758275221728,0.68,242.85,242.77,2.15008328]
[1758275221934,0.68,242.84,242.77,2.15008328]
[1758275222367,32.56,242.83,242.77,2.15008328]
[1758275222518,145.59559401,242.88,242.74,0.1]
[1758275222723,0.68,242.86,242.77,0.65]
[1758275223241,0.68,242.86,242.75,0.65]
[1758275223629,14.41218858,242.85,242.75,0.65]
[1758275223832,0.68,242.84,242.75,0.65]
[1758275224356,0.68,242.84,242.74,0.1]
[1758275225755,13.59559401,242.82,242.74,0.1]
[1758275225960,13.59559401,242.8,242.74,0.1]
[1758275226456,0.68,242.79,242.74,0.1]
[1758275227358,13.59559401,242.78,242.74,0.1]
[1758275227533,0.68,242.77,242.74,0.1]
[1758275227741,4.11929477,242.76,242.74,0.1]
[1758275227944,1.18,242.75,242.74,0.1]
[1758275228139,0.5,242.75,242.74,0.1]
[1758275228450,32.46,242.75,242.74,0.1]
[1758275229027,0.5,242.75,242.74,0.1]
[1758275229248,32.46,242.75,242.74,0.1]
[1758275229451,0.5,242.75,242.74,0.1]
[1758275232025,1.18,242.75,242.74,0.1]
[1758275232955,0.5,242.75,242.74,0.1]
[1758275233151,32.44,242.75,242.74,0.1]
[1758275233865,0.5,242.75,242.74,0.1]
[1758275234035,32.44,242.75,242.74,0.1]
[1758275234444,36.55946446,242.75,242.74,0.1]
[1758275235759,37.23946446,242.75,242.74,0.1]
[1758275235961,36.55946446,242.75,242.74,0.1]
[1758275237066,50.83505847,242.75,242.74,0.1]
[1758275238088,13.87991715,242.66,242.63,100.0]
[1758275238250,32.86,242.65,242.63,100.0]
[1758275238572,32.86,242.64,242.63,100.0]
[1758275238952,18.39692602,242.64,242.63,100.0]
[1758275239273,26.02173939,242.64,242.63,100.0]
[1758275239647,25.34173939,242.64,242.63,100.0]
[1758275239854,57.52173939,242.64,242.63,100.65]
[1758275240160,57.54173939,242.64,242.63,100.65]
[1758275240362,57.54173939,242.64,242.63,100.0]
[1758275241766,57.54173939,242.64,242.63,94.56310272]
[1758275242549,58.22173939,242.64,242.63,94.56310272]
[1758275243281,57.54173939,242.64,242.63,94.56310272]
[1758275243488,25.34173939,242.64,242.63,94.56310272]
[1758275243792,25.34173939,242.64,242.63,95.21310272]
[1758275246471,25.34173939,242.64,242.63,95.49742586]
[1758275246672,25.34173939,242.64,242.63,111.24442461]
[1758275246986,4.11909186,242.78,242.64,28.30457919]
[1758275247171,16.91628651,242.81,242.66,13.87991715]
[1758275247360,16.4,242.8,242.66,13.87991715]
[1758275247551,16.4,242.8,242.69,0.28432314]
[1758275247757,16.4,242.8,242.7,32.91]
[1758275247969,16.4,242.8,242.71,14.56991715]
[1758275248171,16.91628651,242.81,242.72,0.69]
[1758275248448,16.91628651,242.81,242.73,13.59559401]
[1758275248766,16.91628651,242.81,242.75,0.28432314]
[1758275248956,16.91628651,242.81,242.76,0.69]
[1758275250570,16.91628651,242.81,242.78,0.28432314]
[1758275250768,16.91628651,242.81,242.79,0.69]
[1758275250986,0.68,242.8,242.72,0.69]
[1758275251477,0.68,242.8,242.69,0.69]
[1758275252263,13.59559401,242.79,242.66,0.69]
[1758275252470,0.68,242.78,242.66,0.69]
[1758275252673,4.11912509,242.77,242.66,4.81087728]
[1758275252979,32.92,242.76,242.66,4.81087728]
[1758275253576,32.24,242.76,242.66,4.12096539]
[1758275253891,4.1188871,242.79,242.67,0.83216157]
[1758275254191,32.24,242.76,242.67,0.97432314]
[1758275254350,32.24,242.76,242.67,0.28432314]
[1758275254661,32.24,242.76,242.69,4.12048292]
[1758275254863,32.24,242.76,242.69,4.81048292]
[1758275255386,32.24,242.76,242.7,0.97432314]
[1758275255563,32.24,242.76,242.71,0.69]
[1758275255766,32.24,242.76,242.72,0.69]
[1758275255964,32.24,242.76,242.73,0.69]
[1758275257964,32.24,242.76,242.74,0.69]
[1758275258159,4.11886283,242.79,242.74,0.69]
[1758275258360,4.11886283,242.79,242.72,4.11989067]
[1758275258978,4.11886283,242.79,242.71,0.69]
[1758275259172,4.11886283,242.79,242.71,4.81008251]
[1758275259363,4.11886283,242.79,242.71,0.69]
[1758275259875,4.79886283,242.79,242.71,0.69]
[1758275260781,4.79886283,242.79,242.71,4.81013355]
[1758275261373,4.79886283,242.79,242.71,0.69]
[1758275261683,4.79886283,242.79,242.69,4.81032796]
[1758275262076,15.09582728,242.79,242.69,4.81032796]
[1758275262275,0.68,242.78,242.67,4.1207053]
[1758275262475,146.27559401,242.77,242.63,96.71450746]
[1758275262780,0.68,242.76,242.64,0.69]
[1758275262988,32.2,242.75,242.64,0.69]
[1758275263288,4.11980389,242.73,242.64,4.81131993]
[1758275264175,4.11980389,242.73,242.64,0.69]
[1758275264688,4.11980389,242.73,242.64,4.8113292]
[1758275266076,4.11980389,242.73,242.64,4.1213292]
[1758275266274,4.11980389,242.73,242.65,0.69]
[1758275267073,0.68,242.72,242.65,0.69]